bitfinex/quotes_ETHUSD_20250924
["timestamp","ask_amount","ask_price","bid_price","bid_amount"]
[1758723389749,0.1194,4179.8,4179.7,4.038]
[1758723390114,0.5543,4179.8,4179.7,4.038]
[1758723390450,0.0002,4179.8,4179.7,4.038]
[1758723390648,0.5543,4179.8,4179.7,4.038]
[1758723390847,2.90604169,4179.8,4179.7,4.038]
[1758723391018,2.94675896,4179.8,4179.7,4.038]
[1758723391211,2.94675896,4179.8,4178.4,2.84565855]
[1758723391212,10.01022657,4179.8,4178.4,2.84565855]
[1758723391441,2.39272789,4179.4,4178.6,2.39309148]
[1758723391719,2.97675648,4179.3,4178.7,4.038]
[1758723391919,0.58400931,4179.3,4178.7,4.038]
[1758723392137,0.58400931,4179.3,4178.7,6.43108399]
[1758723392338,0.02990931,4179.3,4178.8,16.89302259]
[1758723392525,0.02991003,4179.2,4178.8,14.5]
[1758723392731,0.51338273,4179.5,4178.9,6.031]
[1758723392732,2.42260719,4179.4,4178.9,6.031]
[1758723392931,2.97670719,4179.4,4178.9,6.031]
[1758723393129,0.02990859,4179.4,4178.9,8.42396202]
[1758723393369,0.02990859,4179.4,4178.9,6.2736]
[1758723393370,0.51338273,4179.4,4178.9,6.2736]
[1758723393526,0.54329061,4179.5,4179.0,3.08786455]
[1758723393725,0.02990788,4179.5,4179.1,6.6734504]
[1758723394036,0.54329061,4179.5,4179.2,0.2426]
[1758723394357,0.51338273,4179.6,4179.3,4.733]
[1758723394529,0.51338273,4179.5,4179.3,4.038]
[1758723394855,0.51338273,4179.4,4179.3,4.038]
[1758723395155,0.51338273,4179.5,4179.3,4.038]
[1758723395383,0.51338273,4179.6,4179.3,4.038]
[1758723395520,0.54329061,4179.5,4179.3,4.038]
[1758723395724,0.51338273,4179.4,4178.8,16.89302062]
[1758723395940,0.51338273,4179.3,4178.9,6.031]
[1758723396136,0.51338273,4179.4,4179.0,6.031]
[1758723396336,0.51338273,4179.3,4178.8,16.89302955]
[1758723396617,0.02990788,4179.5,4179.0,2.39287699]
[1758723396618,0.51338273,4179.4,4179.0,2.39287699]
[1758723396822,0.51338273,4179.4,4179.1,4.038]
[1758723397056,1.20681332,4179.4,4178.8,14.5]
[1758723397262,2.39291696,4179.0,4178.9,1.993]
[1758723397575,5.39297422,4178.9,4178.8,14.5]
[1758723397873,15.91638352,4178.9,4178.8,18.538]
[1758723398582,13.5234093,4178.9,4178.8,18.538]
[1758723398780,1.95107654,4178.9,4178.8,18.538]
[1758723399079,0.51338273,4178.9,4178.8,18.538]
[1758723399282,0.51338273,4178.9,4178.8,19.233]
[1758723399486,0.51338273,4179.0,4178.8,18.538]
[1758723399640,0.51338273,4178.9,4178.8,18.538]
[1758723399973,3.51338273,4179.1,4178.8,18.538]
[1758723400189,0.51338273,4179.0,4178.8,18.538]
[1758723400891,0.51338273,4179.0,4178.8,14.5]
[1758723401053,0.51338273,4179.0,4178.9,4.038]
[1758723401253,0.54329347,4179.1,4178.9,4.038]
[1758723401564,0.02991074,4179.1,4178.9,4.038]
[1758723401781,0.54329347,4179.1,4178.9,4.038]
[1758723402087,0.02991074,4179.1,4178.9,4.038]
[1758723402254,0.51338273,4179.1,4179.0,2.62521696]
[1758723402596,0.66249061,4179.5,4179.0,0.6872]
[1758723402774,0.66249061,4179.5,4179.1,4.038]
[1758723402775,0.14910788,4179.5,4179.1,4.038]
[1758723402975,4.03235592,4179.5,4179.1,4.038]
[1758723403174,0.1192,4179.3,4179.2,4.038]
[1758723403354,3.05525372,4179.3,4179.2,4.038]
[1758723403778,3.0552435,4179.3,4179.2,4.038]
[1758723404467,0.66249204,4179.3,4179.2,4.038]
[1758723404790,4.79302087,4179.3,4179.2,4.038]
[1758723405010,2.40027568,4179.3,4179.2,4.038]
[1758723405609,2.40027568,4179.3,4178.8,14.5]
[1758723405814,0.51338273,4179.2,4179.0,2.39287365]
[1758723405977,0.1192,4179.3,4179.1,4.7252]
[1758723406171,0.51475909,4179.2,4179.1,4.7252]
[1758723406714,0.51475909,4179.3,4179.1,7.1180597]
[1758723406925,0.51475909,4179.4,4179.3,2.39274519]
[1758723407116,0.51475909,4179.4,4179.3,7.11794519]
[1758723407320,0.63395909,4179.5,4179.4,2.39268794]
[1758723407493,0.6436343,4179.8,4179.7,2.3925162]
[1758723407494,0.51495909,4179.8,4179.7,2.3925162]
[1758723407693,0.0002,4179.8,4179.7,9.1107162]
[1758723407881,0.0002,4179.8,4179.7,23.6107162]
[1758723408423,0.0002,4179.8,4179.7,17.5797162]
[1758723408722,0.0002,4179.8,4179.7,23.6137162]
[1758723408878,0.0002,4179.8,4179.7,17.5797162]
[1758723409078,0.0002,4179.8,4179.7,23.6127162]
[1758723409284,0.0002,4179.8,4179.7,17.5797162]
[1758723409699,0.0002,4179.8,4179.7,23.6117162]
[1758723410820,0.0002,4179.8,4179.7,14.5]
[1758723411018,0.0002,4179.8,4179.7,18.539]
[1758723411621,0.03010573,4179.8,4179.7,18.539]
[1758723411917,0.58538136,4179.8,4179.7,18.539]
[1758723412119,0.0002,4179.8,4179.7,20.9315162]
[1758723412321,0.0002,4179.8,4179.7,21.6187162]
[1758723413318,0.0002,4179.8,4179.7,18.539]
[1758723413520,0.0002,4179.8,4179.7,20.9315162]
[1758723413705,0.0002,4179.8,4179.7,21.1638162]
[1758723413891,0.0002,4179.8,4179.7,18.7713]
[1758723414083,0.0002,4179.8,4179.7,18.539]
[1758723414519,0.0002,4179.8,4179.7,21.6187162]
[1758723416928,0.0194,4179.9,4179.7,19.2262]
[1758723417098,0.0194,4179.9,4179.7,18.7713]
[1758723417298,0.0194,4179.9,4179.8,2.39245896]
[1758723417622,0.0194,4179.9,4179.8,0.1192]
[1758723417810,0.0194,4179.9,4179.8,2.51165896]
[1758723418432,0.0194,4179.9,4179.8,4.04]
[1758723418735,0.0194,4179.9,4179.8,6.033]
[1758723418889,0.0194,4179.9,4179.7,14.5]
[1758723419092,0.0194,4179.9,4179.8,6.032]
[1758723419308,0.0194,4179.9,4179.7,14.5]
[1758723419550,0.0194,4179.9,4179.8,1.993]
[1758723419691,0.81765462,4179.9,4179.8,6.032]
[1758723420630,0.81765462,4179.9,4179.7,14.5]
[1758723420631,0.1192,4179.8,4179.7,14.5]
[1758723420816,3.09566469,4179.8,4179.7,18.539]
[1758723421025,3.06575896,4179.8,4179.7,14.5]
[1758723421342,0.6733,4179.8,4179.1,0.002]
[1758723421492,0.6733,4179.8,4179.2,6.032]
[1758723421493,2.39274519,4179.3,4179.2,6.032]
[1758723421697,0.79337452,4179.3,4179.2,6.032]
[1758723422006,3.0,4179.6,4179.2,6.032]
[1758723422222,0.63371227,4179.6,4179.2,6.032]
[1758723422418,0.1192,4179.6,4179.2,6.032]
[1758723422592,2.5117914,4179.6,4179.3,14.5]
[1758723422942,0.51451227,4179.8,4179.4,4.04]
[1758723423091,0.1192,4179.6,4179.4,4.04]
[1758723423291,2.42259267,4179.5,4179.3,1.993]
[1758723423497,0.02990788,4179.5,4179.4,18.542]
[1758723423692,0.0194,4179.9,4179.4,20.93465691]
[1758723424031,0.1192,4179.7,4179.5,0.2359]
[1758723424242,0.1192,4179.7,4179.6,4.042]
[1758723424698,3.03695609,4179.7,4179.6,18.542]
[1758723424901,3.59105609,4179.7,4179.6,18.545]
[1758723425292,3.59105609,4179.7,4179.1,0.002]
[1758723425524,0.1192,4179.4,4179.2,6.037]
[1758723425731,0.02990931,4179.3,4179.2,6.037]
[1758723426045,0.02990931,4179.3,4179.1,0.002]
[1758723426196,0.02990931,4179.3,4179.2,4.044]
[1758723426543,2.71638395,4179.3,4179.2,4.044]
[1758723426740,0.1192,4179.2,4179.1,0.002]
[1758723427040,0.63371227,4179.4,4179.2,0.7016]
[1758723427326,0.1192,4179.4,4179.3,4.044]
[1758723427999,0.0194,4179.9,4179.4,2.3926452]
[1758723428197,0.1386,4179.9,4179.5,4.044]
[1758723428427,0.1386,4179.9,4179.7,2.39247916]
[1758723428728,0.1386,4179.9,4179.8,18.544]
[1758723428918,0.1386,4179.9,4179.8,20.7729]
[1758723429302,0.1386,4179.9,4179.8,23.16535896]
[1758723429510,0.0194,4179.9,4179.8,21.2386]
[1758723429835,0.0194,4179.9,4179.8,20.537]
[1758723430140,0.0194,4179.9,4179.8,22.92945896]
[1758723430338,0.0194,4179.9,4179.8,23.63105896]
[1758723431469,0.0194,4179.9,4179.8,20.537]
[1758723431817,0.0194,4179.9,4179.8,22.92945896]
[1758723432285,0.0194,4179.9,4179.8,23.61305896]
[1758723432567,0.0194,4179.9,4179.8,26.12354511]
[1758723434855,0.0194,4179.9,4179.8,26.12554511]
[1758723439187,0.0194,4179.9,4179.8,17.24375896]
[1758723439356,0.0194,4179.9,4179.8,23.04565896]
[1758723439754,0.0194,4179.9,4179.8,23.27575896]
[1758723439967,0.0194,4179.9,4179.8,23.72925896]
[1758723442286,0.0194,4179.9,4179.8,23.04565896]
[1758723442487,0.0194,4179.9,4179.8,23.04365896]
[1758723443689,0.0194,4179.9,4179.8,14.6212]
[1758723443867,0.0194,4179.9,4179.8,14.502]
[1758723444069,0.1289,4179.9,4179.8,20.532]
[1758723444264,0.0186,4179.9,4179.8,20.532]
[1758723445678,0.0186,4179.9,4179.8,14.502]
[1758723445893,0.82869542,4179.9,4179.8,20.532]
[1758723446695,0.4624,4179.9,4179.8,18.539]
[1758723446880,2.96510173,4179.9,4179.8,18.539]
[1758723447398,0.5727,4179.9,4179.8,18.539]
[1758723447591,0.60260502,4179.9,4179.8,18.539]
[1758723448298,0.0186,4179.9,4179.8,18.539]
[1758723450586,0.0186,4179.9,4179.8,20.93145896]
[1758723451197,0.0186,4179.9,4179.8,18.539]
[1758723451883,2.96510173,4179.9,4179.8,14.502]
[1758723452082,3.01316561,4179.9,4179.8,18.539]
[1758723452297,3.56726561,4179.9,4179.8,18.539]
[1758723452597,0.62076388,4179.9,4179.8,28.539]
[1758723453093,0.62076388,4179.9,4179.8,24.502]
[1758723453296,1.17486388,4179.9,4179.8,28.539]
[1758723453796,3.56726561,4179.9,4179.8,28.539]
[1758723454016,3.56726561,4179.9,4179.8,24.502]
[1758723454301,3.56826561,4179.9,4179.8,28.539]
[1758723454673,1.17586388,4179.9,4179.8,28.539]
[1758723454873,1.13690098,4179.9,4179.8,24.502]
[1758723455076,4.08340271,4179.9,4179.8,28.539]
[1758723455403,1.69100098,4179.9,4179.8,28.539]
[1758723455574,1.69100098,4179.9,4179.8,24.502]
[1758723455774,1.58070098,4179.9,4179.8,28.539]
[1758723455999,1.13690098,4179.9,4179.8,28.539]
[1758723456499,1.13690098,4179.9,4179.8,18.539]
[1758723457303,0.5347371,4179.9,4179.8,18.539]
[1758723458206,0.5347371,4179.9,4179.8,21.16155896]
[1758723458379,0.0196,4179.9,4179.8,21.61505896]
[1758723458579,0.0196,4179.9,4179.8,21.16155896]
[1758723459088,0.0196,4179.9,4179.8,20.93145896]
[1758723459403,0.0196,4179.9,4179.8,21.61505896]
[1758723459589,0.0196,4179.9,4179.8,31.73425896]
[1758723460470,0.0196,4179.9,4179.8,28.539]
[1758723461083,0.0196,4179.9,4179.8,30.93145896]
[1758723461288,0.0196,4179.9,4179.8,31.16155896]
[1758723461602,0.0196,4179.9,4179.8,28.7691]
[1758723461903,0.0196,4179.9,4179.8,28.539]
[1758723462075,0.0196,4179.9,4179.8,30.93145896]
[1758723462276,0.0196,4179.9,4179.8,31.61405896]
[1758723463171,0.0196,4179.9,4179.8,31.73325896]
[1758723463374,0.0196,4179.9,4179.8,34.12454511]
[1758723467810,0.0196,4179.9,4179.8,38.43454511]
[1758723468624,0.0196,4179.9,4179.3,2.39273933]
[1758723468625,27.3692497,4179.9,4177.1,0.02]
[1758723468915,0.85352877,4178.8,4178.1,4.037]
[1758723469120,1.36967099,4178.7,4178.4,0.675]
[1758723469324,3.0,4178.5,4178.4,0.675]
[1758723469490,5.90934552,4178.5,4178.4,0.675]
[1758723469686,7.46070617,4178.5,4178.4,0.675]
[1758723470103,8.01480617,4178.5,4178.4,0.675]
[1758723471119,8.01400617,4178.5,4178.4,0.675]
[1758723471317,6.81438144,4178.5,4178.4,0.675]
[1758723471523,7.45990617,4178.5,4178.4,0.675]
[1758723471720,7.57020617,4178.5,4178.4,0.675]
[1758723471923,8.01400617,4178.5,4178.4,0.675]
[1758723472119,7.45990617,4178.5,4178.4,0.675]
[1758723472323,1.42197814,4178.5,4178.4,0.675]
[1758723472626,2.90934552,4178.5,4178.4,15.175]
[1758723472803,2.3932033,4178.5,4178.4,15.175]
[1758723472997,0.51614222,4178.6,4178.4,15.175]
[1758723473211,1.16166695,4178.7,4178.4,15.175]
[1758723473387,2.3932033,4178.5,4178.4,15.175]
[1758723473593,5.3932033,4178.5,4178.4,15.175]
[1758723473793,6.8041423,4178.5,4178.4,15.175]
[1758723475839,2.39326057,4178.4,4178.3,0.002]
[1758723476039,2.93931854,4178.4,4178.3,18.561]
[1758723477278,3.49341854,4178.4,4178.3,14.502]
[1758723477448,4.5361074,4178.4,4178.3,18.558]
[1758723477959,4.50619165,4178.4,4178.3,18.558]
[1758723478773,3.95209165,4178.4,4178.3,18.558]
[1758723478939,4.06239165,4178.4,4178.3,18.558]
[1758723479284,4.5361074,4178.4,4178.3,18.558]
[1758723479459,7.5361074,4178.4,4178.3,18.558]
[1758723479656,7.50619165,4178.4,4178.3,18.558]
[1758723479837,7.50619165,4178.4,4178.3,14.502]
[1758723480038,8.29819165,4178.4,4178.3,0.002]
[1758723480255,8.29819165,4178.4,4178.3,4.056]
[1758723482692,8.29819165,4178.4,4178.3,0.002]
[1758723483783,9.15172042,4178.4,4178.3,0.002]
[1758723484196,8.29819165,4178.4,4178.3,0.002]
[1758723485368,2.39371888,4177.6,4177.1,0.02]
[1758723485569,10.58821225,4177.6,4177.1,0.02]
[1758723485795,12.48253504,4177.6,4177.1,0.02]
[1758723485999,11.62853299,4177.6,4177.1,0.02]
[1758723486161,12.90953606,4177.6,4177.1,0.02]
[1758723487993,13.38703267,4177.6,4177.1,0.02]
[1758723489296,12.2020218,4177.6,4177.1,0.02]
[1758723489505,3.18594809,4177.2,4177.1,0.02]
[1758723489713,34.24420027,4177.2,4177.1,1e-08]
[1758723489866,32.93754211,4177.2,4177.1,1e-08]
[1758723490066,11.62499241,4177.2,4177.1,1e-08]
[1758723490510,12.17909241,4177.2,4177.1,1e-08]
[1758723491286,12.06879241,4177.2,4177.1,1e-08]
[1758723492102,12.17909241,4177.2,4177.1,1e-08]
[1758723492412,13.45582622,4177.2,4177.1,1e-08]
[1758723493212,31.55166974,4176.9,4176.1,0.02]
[1758723493522,36.12081196,4176.9,4176.1,0.02]
[1758723493686,36.66561196,4176.9,4176.1,0.02]
[1758723494022,36.66561196,4176.9,4176.6,0.002]
[1758723495644,38.11481196,4176.9,4176.6,0.002]
[1758723496065,6.30537736,4176.8,4176.6,0.002]
[1758723496280,12.9222282,4176.7,4176.6,0.002]
[1758723496448,12.89230027,4176.7,4176.6,0.002]
[1758723496885,13.43710027,4176.7,4176.6,0.002]
[1758723497039,31.55201369,4176.3,4176.2,0.002]
[1758723497353,36.11915591,4176.3,4176.2,0.002]
[1758723497569,36.9825278,4176.3,4176.2,0.002]
[1758723497781,38.68410739,4176.3,4176.2,0.002]
[1758723498297,0.792,4175.8,4175.1,0.02]
[1758723498468,3.792,4176.2,4175.1,0.02]
[1758723498469,0.792,4175.2,4175.1,0.02]
[1758723498790,10.78737574,4175.2,4175.1,0.02]
[1758723499127,11.62733916,4175.2,4175.1,0.02]
[1758723499867,12.17213916,4175.2,4175.1,0.02]
[1758723500039,9.17213916,4175.2,4175.1,0.02]
[1758723500239,11.74552634,4175.2,4175.1,0.02]
[1758723500871,13.9320499,4175.2,4175.1,0.02]
[1758723501234,13.44919462,4175.2,4175.1,0.02]
[1758723501431,13.44772236,4175.2,4175.1,0.02]
[1758723501684,2.39526695,4174.9,4174.8,0.002]
[1758723501896,11.36450262,4174.9,4174.8,0.002]
[1758723502099,12.12656179,4174.9,4174.8,0.002]
[1758723502394,13.8287557,4174.9,4174.8,0.002]
[1758723504607,13.82821549,4174.9,4174.8,0.002]
[1758723504895,12.56106179,4174.9,4174.8,0.002]
[1758723505080,28.55304616,4174.5,4174.4,0.002]
[1758723505280,38.25911175,4174.5,4174.4,0.002]
[1758723506154,2.39578342,4174.0,4173.8,0.002]
[1758723506372,9.96492564,4174.0,4173.8,0.002]
[1758723506570,9.96492564,4174.0,4173.9,0.6856]
[1758723507406,6.70392564,4174.0,4173.9,0.6856]
[1758723507618,5.91192564,4174.0,4173.9,0.6856]
[1758723508317,2.39584082,4173.9,4173.8,0.002]
[1758723508523,2.94193105,4173.9,4173.8,0.002]
[1758723509232,4.21840162,4173.9,4173.8,0.002]
[1758723509436,2.94193105,4173.9,4173.8,0.002]
[1758723509637,0.54609023,4173.9,4173.8,0.002]
[1758723509819,0.51614222,4173.9,4173.8,0.002]
[1758723510220,0.63534222,4173.9,4173.8,2.39789822]
[1758723510452,0.1192,4173.9,4173.8,3.56088525]
[1758723510744,0.49174051,4174.0,4173.9,2.39584082]
[1758723510951,1.27711606,4174.6,4174.4,2.39555385]
[1758723511244,1.27711606,4174.8,4174.5,0.6836]
[1758723511401,4.27711606,4174.8,4174.6,0.6836]
[1758723511601,1.27711606,4174.8,4174.7,0.6836]
[1758723512239,1.27711606,4174.9,4174.7,0.6836]
[1758723512436,0.1192,4174.7,4174.5,16.89545312]
[1758723512797,0.1192,4174.7,4174.5,14.5]
[1758723512999,0.1192,4174.7,4174.6,0.6836]
[1758723513338,1.42625833,4174.7,4174.6,0.6836]
[1758723513537,0.14914227,4174.7,4174.6,0.6836]
[1758723514112,0.14914227,4174.7,4174.6,0.2492]
[1758723514113,2.54452397,4174.7,4174.6,0.2492]
[1758723514701,2.39543908,4174.6,4174.5,14.5]
[1758723515407,2.39543908,4174.6,4173.8,2.87727377]
[1758723515408,0.66409732,4174.6,4173.8,0.002]
[1758723515615,1.71019407,4174.3,4173.8,0.002]
[1758723515793,2.39580187,4174.0,4173.8,14.502]
[1758723515968,0.02994801,4173.9,4173.8,14.502]
[1758723516162,2.42578883,4173.9,4173.8,14.9364]
[1758723516401,0.02994801,4173.9,4173.8,14.9364]
[1758723516592,2.42578883,4173.9,4173.8,15.1856]
[1758723516812,0.02994801,4173.9,4173.8,15.1856]
[1758723517298,3.0,4174.1,4173.8,15.1856]
[1758723517499,4.71019407,4174.2,4173.9,0.6836]
[1758723517803,4.10586996,4174.2,4174.0,0.6836]
[1758723517975,4.10586996,4174.2,4174.1,0.6836]
[1758723517976,1.71019407,4174.2,4174.1,0.6836]
[1758723518371,4.71019407,4174.2,4174.1,0.6836]
[1758723518571,1.71019407,4174.2,4174.1,0.6836]
[1758723519672,1.71019407,4174.3,4174.1,15.1836]
[1758723519871,1.71019407,4174.3,4174.1,18.552]
[1758723520086,1.71019407,4174.3,4174.2,0.6836]
[1758723520287,1.71019407,4174.4,4174.2,0.6836]
[1758723520538,1.71019407,4174.5,4174.3,0.6836]
[1758723520697,1.71019407,4174.7,4174.4,0.6836]
[1758723520904,1.71019407,4174.9,4174.5,0.6836]
[1758723521108,1.71019407,4174.9,4174.6,0.6836]
[1758723521294,1.71019407,4174.9,4174.7,0.6836]
[1758723521488,1.71019407,4174.9,4174.8,0.6836]
[1758723521933,1.71019407,4174.9,4174.8,4.7346]
[1758723522324,2.22390156,4174.9,4174.8,4.7346]
[1758723523107,0.51370749,4174.9,4174.8,7.12992432]
[1758723523507,0.51370749,4174.9,4174.8,5.83470555]
[1758723524004,0.51370749,4174.9,4174.8,3.43938123]
[1758723524204,0.51370749,4174.9,4174.8,17.93938123]
[1758723524398,1.79956079,4174.9,4174.8,20.33470555]
[1758723525002,1.79956079,4174.9,4174.8,22.6077199]
[1758723525003,0.51370749,4174.9,4174.8,22.6077199]
[1758723525326,0.51290749,4174.9,4174.8,22.6077199]
[1758723525544,0.51290749,4174.9,4174.8,23.4336199]
[1758723525840,0.51290749,4174.9,4174.8,19.99423867]
[1758723526227,0.51290749,4174.9,4174.8,15.3259]
[1758723526432,0.64307582,4174.9,4174.8,14.8523]
[1758723526607,0.64307582,4174.9,4174.8,18.7861]
[1758723526942,0.64307582,4174.9,4174.8,19.2597]
[1758723527143,0.64307582,4174.9,4174.8,18.7861]
[1758723527340,0.64307582,4174.9,4174.8,21.18142432]
[1758723527543,0.64307582,4175.0,4174.8,21.18142432]
[1758723527702,0.64307582,4175.0,4174.9,0.2331]
[1758723528110,0.64307582,4175.0,4174.9,4.053]
[1758723528438,0.1192,4175.0,4174.9,4.053]
[1758723528626,0.1192,4175.0,4174.9,7.15496695]
[1758723529039,0.64307582,4175.3,4174.9,7.15496695]
[1758723529265,0.76227582,4175.2,4175.0,0.7067]
[1758723529442,0.1192,4175.2,4175.0,0.4736]
[1758723529643,0.1192,4175.2,4175.1,0.7067]
[1758723530016,0.1192,4175.2,4175.1,0.2331]
[1758723530221,0.1192,4175.2,4174.9,4.053]
[1758723530418,0.1192,4175.2,4174.5,2.1142]
[1758723530419,0.59356603,4175.2,4174.5,0.2331]
[1758723530736,0.1192,4174.9,4174.6,20.546]
[1758723530930,0.1192,4174.9,4174.8,0.002]
[1758723532343,0.1192,4174.9,4174.8,4.052]
[1758723532549,0.14914083,4174.9,4174.8,4.052]
[1758723534121,0.1192,4174.9,4174.8,4.2851]
[1758723534347,0.1192,4174.9,4174.8,4.052]
[1758723534764,0.1192,4174.9,4174.8,4.2851]
[1758723535141,3.07821092,4174.9,4174.8,4.052]
[1758723535327,6.54971092,4174.9,4174.8,4.052]
[1758723535540,7.19278674,4174.9,4174.8,4.052]
[1758723535756,4.79751979,4174.9,4174.8,4.052]
[1758723535956,6.15754277,4174.9,4174.8,4.052]
[1758723536157,3.76227582,4174.9,4174.8,4.052]
[1758723536344,6.15754277,4174.9,4174.8,4.052]
[1758723536854,6.40544277,4174.9,4174.8,4.052]
[1758723537163,6.15754277,4174.9,4174.8,4.052]
[1758723537344,7.5275546,4174.9,4174.8,4.052]
[1758723537545,5.13228765,4174.9,4174.8,4.052]
[1758723537947,7.5275546,4174.9,4174.8,4.052]
[1758723538250,7.7754546,4174.9,4174.8,4.052]
[1758723539163,7.5275546,4174.9,4174.8,4.052]
[1758723539372,6.88447878,4174.9,4174.8,4.052]
[1758723539553,8.2469546,4174.9,4174.8,4.053]
[1758723540652,8.2469546,4174.9,4174.8,0.002]
[1758723540851,8.39587878,4174.9,4174.8,0.002]
[1758723541056,9.25423158,4174.9,4174.8,0.002]
[1758723542277,8.53483158,4174.9,4174.8,0.002]
[1758723542474,6.76527878,4174.9,4174.8,0.002]
[1758723542664,5.90991466,4174.9,4174.8,0.002]
[1758723543061,4.1583119,4174.9,4174.8,0.002]
[1758723543238,6.55357885,4174.9,4174.8,0.002]
[1758723543438,4.1583119,4174.9,4174.8,0.002]
[1758723544440,0.51464771,4175.1,4174.8,0.7058]
[1758723544641,0.1192,4175.0,4174.8,0.002]
[1758723544870,0.1192,4175.0,4174.9,0.7038]
[1758723545059,0.001,4175.2,4174.9,0.7038]
[1758723545382,0.001,4175.2,4175.0,4.051]
[1758723545677,3.08605221,4175.1,4175.0,14.5]
[1758723545891,3.75309018,4175.1,4175.0,14.5]
[1758723546258,7.91140208,4175.1,4175.0,18.552]
[1758723546662,7.22050208,4175.1,4175.0,18.552]
[1758723547058,8.70340208,4175.1,4175.0,18.552]
[1758723547296,2.39526695,4174.9,4174.8,0.002]
[1758723547481,8.78212883,4174.9,4174.8,0.002]
[1758723547676,9.8705885,4174.9,4174.8,0.002]
[1758723548060,8.5847352,4174.9,4174.8,0.002]
[1758723548505,9.8705885,4174.9,4174.8,0.002]
[1758723548961,8.5847352,4174.9,4174.8,0.002]
[1758723549414,9.8705885,4174.9,4174.8,0.002]
[1758723549911,9.8715885,4174.9,4174.8,0.002]
[1758723550095,8.5857352,4174.9,4174.8,0.002]
[1758723550759,8.1366352,4174.9,4174.8,0.002]
[1758723550962,7.8948352,4174.9,4174.8,0.002]
[1758723552105,8.1330352,4174.9,4174.8,0.002]
[1758723552296,8.6012352,4174.9,4174.8,0.002]
[1758723552490,8.6004352,4174.9,4174.8,0.002]
[1758723553703,8.1330352,4174.9,4174.8,0.002]
[1758723554363,7.8948352,4174.9,4174.8,0.002]
[1758723555776,8.6012352,4174.9,4174.8,0.002]
[1758723556073,9.8870885,4174.9,4174.8,0.002]
[1758723556476,3.18755385,4174.4,4174.3,0.002]
[1758723556779,8.14783275,4174.4,4174.3,0.002]
[1758723556965,7.966905,4174.4,4174.3,0.002]
[1758723557368,9.25298,4174.4,4174.3,0.002]
[1758723558299,7.966905,4174.4,4174.3,0.002]
[1758723558970,9.25273122,4174.4,4174.3,0.002]
[1758723559394,7.966905,4174.4,4174.3,0.002]
[1758723559815,3.18778342,4174.0,4173.9,0.002]
[1758723559990,6.30704082,4173.9,4173.8,1e-08]
[1758723560195,8.81274209,4173.9,4173.8,1e-08]
[1758723562223,7.52808853,4173.9,4173.8,1e-08]
[1758723563150,10.86968853,4173.9,4173.8,1e-08]
[1758723563486,6.82168853,4173.9,4173.8,1e-08]
[1758723563690,12.24636173,4173.9,4173.8,1e-08]
[1758723564492,8.19836173,4173.9,4173.8,1e-08]
[1758723564822,12.24636173,4173.9,4173.8,1e-08]
[1758723564989,13.10162316,4173.9,4173.8,1e-08]
[1758723565733,9.05362316,4173.9,4173.8,1e-08]
[1758723565884,13.10162316,4173.9,4173.8,1e-08]
[1758723567521,13.10162316,4173.9,4173.8,0.23640001]
[1758723567522,6.55197749,4173.9,4173.8,0.23640001]
[1758723567725,6.55197749,4173.9,4173.8,0.70010001]
[1758723567726,5.91048853,4173.9,4173.8,0.70010001]
[1758723568380,0.51464771,4173.9,4173.8,0.70010001]
[1758723568579,2.39584082,4173.9,4173.8,0.70010001]
[1758723569018,0.51464771,4174.2,4173.8,0.70010001]
[1758723569224,2.3957172,4174.2,4173.9,0.7001]
[1758723569406,3.0,4174.1,4174.0,0.7001]
[1758723569611,2.91036028,4174.2,4174.1,0.7001]
[1758723569820,2.91036028,4174.2,4173.8,1e-08]
[1758723569821,2.39578077,4174.1,4173.8,1e-08]
[1758723570124,5.91042848,4174.1,4173.9,0.7001]
[1758723570300,3.51464771,4174.0,4173.8,1e-08]
[1758723570502,0.51464771,4174.0,4173.8,1e-08]
[1758723570723,2.39583725,4174.0,4173.8,1e-08]
[1758723570927,5.39583725,4174.0,4173.9,0.7001]
[1758723571120,5.91048496,4174.0,4173.8,1e-08]
[1758723571447,5.39583725,4174.0,4173.9,0.2364]
[1758723571606,0.51339453,4174.0,4173.9,0.7001]
[1758723571800,3.0370456,4174.4,4173.9,0.7001]
[1758723571801,0.1192,4174.1,4173.9,0.7001]
[1758723572008,0.1192,4174.1,4173.8,1e-08]
[1758723572217,0.1192,4174.1,4174.0,0.7001]
[1758723572675,0.1192,4174.1,4174.0,3.40548217]
[1758723572804,0.1192,4174.5,4174.4,2.39555385]
[1758723573004,0.1192,4174.5,4174.4,0.7001]
[1758723574618,0.1192,4174.5,4174.4,3.09565385]
[1758723574854,0.1192,4174.7,4174.4,17.59565385]
[1758723575149,0.1192,4174.7,4174.5,0.7001]
[1758723575508,0.1192,4174.7,4174.6,0.7001]
[1758723575718,0.1192,4174.7,4174.6,3.09553908]
[1758723575921,0.001,4174.9,4174.8,2.39532432]
[1758723576572,0.001,4174.9,4174.8,3.09542432]
[1758723578420,0.001,4174.9,4174.8,17.59542432]
[1758723578873,0.001,4174.9,4174.8,19.98671047]
[1758723579635,0.0002,4174.9,4174.8,19.98671047]
[1758723581059,0.0002,4174.9,4174.8,22.98671047]
[1758723581562,0.0002,4174.9,4174.8,19.98671047]
[1758723581760,0.0002,4174.9,4174.8,22.98671047]
[1758723581994,0.0002,4174.9,4174.8,23.89791047]
[1758723584159,0.0002,4174.9,4174.8,27.94291047]
[1758723585989,0.001,4175.8,4175.7,2.39480805]
[1758723586186,0.001,4175.8,4175.7,8.43480805]
[1758723586483,0.001,4175.8,4175.7,9.12730805]
[1758723586697,0.001,4177.8,4175.8,2.3947507]
[1758723586698,1e-08,4175.9,4175.8,2.3947507]